fUST/lending_fUST_20240127
["ID","MTS","AMOUNT","RATE_DAILY","PERIOD"]
[312855336,1706365840637,-500.0,0.00032594,7]
[312855337,1706365840646,-574.83531078,0.00032594,7]
[312855338,1706365840655,-500.0,0.00032594,7]
[312855339,1706365840664,-82714.7913079,0.00032595,2]
[312855340,1706365840673,-228.50754628,0.00033,2]
[312855341,1706365840682,-22355.32655684,0.00033,5]
[312855342,1706365840691,-272.585389,0.00033072,2]
[312855343,1706365840700,-620.00001886,0.00033159,2]
[312855344,1706365840710,-158.81503,0.00033268,2]
[312855345,1706365840719,-300.0,0.000334,17]
[312855346,1706365840728,-7589.49773761,0.00034,4]
[312855347,1706365840737,-272.585389,0.00034051,2]
[312855348,1706365840747,-174.07552609,0.000348,2]
[312855349,1706365840756,-620.00000094,0.00034817,2]
[312855350,1706365840765,-158.81503,0.00034834,2]
[312855351,1706365840774,-347.61,0.00034896,2]
[312855352,1706365840783,-347.61,0.00034896,2]
[312855353,1706365840793,-347.61,0.00034896,2]
[312855354,1706365840802,-347.61,0.00034896,2]
[312855355,1706365840811,-347.61,0.00034896,2]
[312855356,1706365840820,-347.61,0.00034896,2]
[312855357,1706365840830,-347.61,0.00034896,2]
[312855358,1706365840839,-347.61,0.00034896,2]
[312855359,1706365840848,-347.61,0.00034896,2]
[312855360,1706365840857,-347.61,0.00034896,2]
[312855361,1706365840866,-276000.0,0.00034897,2]
[312855362,1706365840875,-200.0,0.000349,4]
[312855364,1706365840884,-300.0,0.000349,17]
[312855365,1706365840893,-1000.0,0.00034957,3]
[312855366,1706365840902,-1000.0,0.00034957,3]
[312855367,1706365840910,-1000.0,0.00034957,3]
[312855368,1706365840919,-1000.0,0.00034957,3]
[312855369,1706365840928,-1000.0,0.00034957,3]
[312855370,1706365840937,-1000.0,0.00034957,3]
[312855371,1706365840946,-1000.0,0.00034957,3]
[312855372,1706365840955,-422.66718412,0.00034957,3]
[312855373,1706365840966,-619.87708183,0.00034981,4]
[312855374,1706365840975,-200.82122795,0.00034991,4]
[312855375,1706365840984,-76476.46380949,0.00034992,4]
[312855376,1706365840993,-611.50792691,0.00034993,4]
[312855377,1706365841002,-294.35075022,0.00034994,4]
[312855378,1706365841012,-16529.42485619,0.00034995,4]
[312855379,1706365841022,-260.99214553,0.00034995,4]
[312855380,1706365841031,-642.42435849,0.00034995,4]
[312855381,1706365841040,-5470.0826724,0.00034996,4]
[312855382,1706365841050,-2080.40059102,0.00034996,4]
[312855383,1706365841059,-5175.97265662,0.00034996,4]
[312855384,1706365841069,-156.37412083,0.00034996,4]
[312855385,1706365841078,-603.01279961,0.00034997,4]
[312855386,1706365841087,-229.40668121,0.00034997,4]
[312855387,1706365841096,-6063.0591503,0.00034997,2]
[312855388,1706365841105,-500.0,0.00034999,7]
[312855389,1706365841115,-176.60188357,0.00034999,7]
[312855390,1706365841125,-500.0,0.00034999,10]
[312855391,1706365841134,-500.0,0.00034999,10]
[312855392,1706365841143,-373.73938568,0.00034999,10]
[312855393,1706365841152,-311.78878247,0.00034999,10]
[312855394,1706365841161,-500.0,0.00034999,10]
[312855395,1706365841170,-500.0,0.00034999,10]
[312855396,1706365841179,-500.0,0.00034999,10]
[312855397,1706365841188,-500.0,0.00034999,10]
[312855398,1706365841197,-500.0,0.00034999,10]
[312855399,1706365841206,-500.0,0.00034999,10]
[312855400,1706365841216,-500.0,0.00034999,10]
[312855401,1706365841225,-500.0,0.00034999,10]
[312855402,1706365841234,-500.0,0.00034999,10]
[312855403,1706365841244,-500.0,0.00034999,10]
[312855404,1706365841252,-500.0,0.00034999,10]
[312855405,1706365841262,-500.0,0.00034999,10]
[312855406,1706365841271,-500.0,0.00034999,10]
[312855407,1706365841280,-500.0,0.00034999,10]
[312855408,1706365841289,-500.0,0.00034999,10]
[312855409,1706365841297,-500.0,0.00034999,10]
[312855410,1706365841307,-500.0,0.00034999,10]
[312855411,1706365841317,-500.0,0.00034999,10]
[312855412,1706365841326,-500.0,0.00034999,10]
[312855413,1706365841336,-321.69028241,0.00034999,10]
[312855414,1706365841345,-500.0,0.00034999,10]
[312855415,1706365841354,-297.72143804,0.00034999,10]
[312855416,1706365841363,-500.0,0.00034999,10]
[312855417,1706365841372,-500.0,0.00034999,10]
[312855418,1706365841381,-500.0,0.00034999,10]
[312855419,1706365841391,-500.0,0.00034999,10]
[312855420,1706365841400,-500.0,0.00034999,10]
[312855421,1706365841409,-500.0,0.00034999,10]
[312855422,1706365841419,-532.71939461,0.00034999,10]
[312855423,1706365841429,-500.0,0.00034999,10]
[312855424,1706365841439,-500.0,0.00034999,10]
[312855425,1706365841449,-255.10600488,0.00035,2]
[312855426,1706365841458,-26498.98790794,0.00035,15]
[312855427,1706365841473,-10202.84952288,0.00035,15]
[312855428,1706365841542,-28077.82917959,0.00035,15]
[312855429,1706365841551,-2000.0,0.00035,11]
[312855430,1706365841560,-155.12190431,0.00035,6]
[312855431,1706365841569,-151.0,0.00035,2]
[312855432,1706365841578,-242.505596,0.00035,2]
[312855433,1706365841588,-242.505596,0.00035,2]
[312855434,1706365841597,-151.0,0.00035,2]
[312855435,1706365841606,-151.0,0.00035,2]
[312855436,1706365841615,-606.014986,0.00035,2]
[312855437,1706365841624,-606.014986,0.00035,2]
[312855439,1706365841633,-9735.260304,0.00035,2]
[312855440,1706365841642,-9735.260304,0.00035,2]
[312855442,1706365841651,-3026.607426,0.00035,2]
[312855443,1706365841660,-3026.607426,0.00035,2]
[312855444,1706365841669,-151.0,0.00035,2]
[312855445,1706365841678,-151.0,0.00035,2]
[312855446,1706365841687,-2000.0,0.0003501,11]
[312855447,1706365841697,-2000.0,0.0003502,11]
[312855448,1706365841705,-272.585389,0.00035029,2]
[312855449,1706365841714,-2000.0,0.0003503,11]
[312855450,1706365841792,-2000.0,0.0003504,11]
[312855451,1706365841801,-2000.0,0.0003505,11]
[312855452,1706365841810,-2000.0,0.0003506,12]
[312855453,1706365841819,-2000.0,0.0003507,12]
[312855454,1706365841828,-2000.0,0.0003508,12]
[312855455,1706365841838,-2000.0,0.0003509,12]
[312855456,1706365841847,-2000.0,0.000351,12]
[312855457,1706365841857,-2000.0,0.0003511,12]
[312855458,1706365841866,-2000.0,0.0003512,12]
[312855459,1706365841875,-2000.0,0.0003513,12]
[312855460,1706365841884,-2000.0,0.0003514,12]
[312855461,1706365841894,-2000.0,0.0003515,12]
[312855462,1706365841903,-14.35752547,0.0003516,12]
[312855463,1706365841915,-1985.64247453,0.0003516,12]
[312855464,1706365841924,-611.26110454,0.0003517,12]
[312855465,1706365842406,-2871.68740746,0.0003517,12]
[312855466,1706365842415,-500.0,0.0003522,3]
[312855467,1706365842424,-500.0,0.0003524,3]
[312855468,1706365842433,-151.0,0.00035246,4]
[312855469,1706365842442,-500.0,0.0003526,3]
[312855470,1706365842451,-500.0,0.0003528,3]
[312855471,1706365842460,-500.0,0.000353,3]
[312855472,1706365842469,-500.0,0.0003532,3]
[312855473,1706365842478,-500.0,0.0003534,3]
[312855474,1706365842486,-500.0,0.0003536,3]
[312855475,1706365842495,-500.0,0.0003538,3]
[312855476,1706365842505,-500.0,0.000354,3]
[312855477,1706365842513,-500.0,0.0003542,3]
[312855478,1706365842522,-500.0,0.0003542,3]
[312855479,1706365842531,-500.0,0.0003544,3]
[312855480,1706365842541,-500.0,0.0003544,3]
[312855481,1706365842550,-500.0,0.0003546,3]
[312855482,1706365842559,-500.0,0.0003546,3]
[312855483,1706365842568,-500.0,0.0003548,3]
[312855484,1706365842577,-500.0,0.0003548,3]
[312855485,1706365842586,-150.70062205,0.00035492,2]
[312855486,1706365842595,-500.0,0.000355,3]
[312855487,1706365842604,-500.0,0.000355,3]
[312855488,1706365842614,-500.0,0.0003552,3]
[312855489,1706365842623,-500.0,0.0003552,3]
[312855490,1706365842632,-500.0,0.0003554,3]
[312855491,1706365842641,-500.0,0.0003554,3]
[312855492,1706365842650,-500.0,0.0003556,3]
[312855493,1706365842659,-500.0,0.0003556,3]
[312855494,1706365842668,-1000.0,0.0003557,10]
[312855495,1706365842678,-279.00352392,0.0003557,2]
[312855496,1706365842687,-8814.36663971,0.00035577,3]
[312855497,1706365842698,-500.0,0.0003558,3]
[312855498,1706365842707,-500.0,0.0003558,3]
[312855499,1706365842716,-151.0,0.00035596,4]
[312855500,1706365842725,-201.3989013,0.000356,3]
[312855514,1706365843692,-298.6010987,0.000356,3]
[312855516,1706365843701,-13.66831123,0.000356,3]
[312855536,1706365874584,938.11704749,0.00014168,2]
[312855542,1706366004018,13499.95121036,0.00031,30]
[312855543,1706366004041,36500.04878964,0.00031,30]
[312855544,1706366177246,1100.0,0.0003,10]
[312855545,1706366582392,1000.0,0.00016924,3]
[312855546,1706366582687,1000.0,0.00016924,3]
[312855547,1706366582933,1000.0,0.00016924,3]
[312855548,1706366583549,1000.0,0.00016924,3]
[312855549,1706366583780,1000.0,0.00016924,3]
[312855550,1706366584165,1000.0,0.00016924,3]
[312855551,1706366584450,1000.0,0.00016924,3]
[312855552,1706366584756,422.66718412,0.00016924,3]
[312855553,1706366816748,155.01860223,0.00021089,4]
[312855554,1706366833265,155.01860223,0.00020127,4]
[312855555,1706366853249,155.01860223,0.00020122,4]
[312855557,1706366873283,155.01860223,0.00020122,4]
[312855558,1706366891751,155.01860223,0.00020122,4]
[312855559,1706366911760,155.01860223,0.00020129,4]
[312855610,1706367032565,-527.10191996,0.00018572,2]
[312855612,1706367032576,-2946.87564997,0.00018572,2]
[312855613,1706367032620,-541.4543357,0.00018572,2]
[312855614,1706367032629,-1294.67927842,0.00018572,2]
[312855615,1706367032638,-166.80502533,0.00018572,2]
[312855616,1706367032647,-265.67702683,0.00018573,2]
[312855617,1706367032656,-595.56031941,0.00018573,2]
[312855618,1706367032665,-155.01860223,0.00018573,2]
[312855619,1706367032674,-7818.02905683,0.00018573,2]
[312855620,1706367032683,-243.3365684,0.00018574,2]
[312855621,1706367032692,-500.0,0.00018574,2]
[312855622,1706367032701,-329.79784935,0.00018574,2]
[312855623,1706367032710,-272.79145972,0.00018574,2]
[312855624,1706367032719,-688.5172537,0.00018574,2]
[312855625,1706367032728,-6111.54872253,0.00018574,2]
[312855626,1706367032740,-30881.95258711,0.00018574,2]
[312855627,1706367032749,-155.01860223,0.00018575,2]
[312855628,1706367032758,-522.50744065,0.00018575,2]
[312855629,1706367032768,-937.92643854,0.00018575,2]
[312855630,1706367032777,-181.11768672,0.00018575,2]
[312855631,1706367032786,-3921.59583547,0.00018575,2]
[312855632,1706367032795,-175.34431987,0.00018576,2]
[312855633,1706367032804,-4817.36489966,0.00018576,2]
[312855634,1706367032813,-1267.85460751,0.00018576,2]
[312855635,1706367032823,-302.17444234,0.00018577,2]
[312855636,1706367032832,-588.79527568,0.00018577,2]
[312855637,1706367032841,-617.20703081,0.00018577,2]
[312855638,1706367032850,-155.01860223,0.00018577,3]
[312855639,1706367032860,-494.75816422,0.00018577,2]
[312855640,1706367032869,-155.01860223,0.00018577,2]
[312855641,1706367032878,-163.32257243,0.00018578,2]
[312855642,1706367032887,-555.82631352,0.00018676,2]
[312855643,1706367032897,-1580.67204766,0.00018676,2]
[312855644,1706367032906,-155.01860223,0.00018676,2]
[312855645,1706367032915,-171.07208762,0.00018676,2]
[312855646,1706367032924,-60136.93699668,0.00018676,2]
[312855684,1706367038851,-261.32079795,0.00018571,2]
[312855687,1706367038861,-422.09405337,0.00018571,2]
[312855689,1706367038872,-604.91928667,0.00018571,2]
[312855691,1706367038881,-179.04837668,0.00018571,2]
[312855693,1706367038890,-19881.04253243,0.00018675,2]
[312855695,1706367038899,-199.37233951,0.00018675,2]
[312855697,1706367038907,-155.06158408,0.00018675,2]
[312855699,1706367038916,-21119.39447992,0.00018676,2]
[312855701,1706367038925,-21701.07731623,0.00018677,2]
[312855702,1706367038934,-3748.53879648,0.00018678,2]
[312855704,1706367038943,-163.32257242,0.00018959,2]
[312855706,1706367038952,-1583.7528565,0.00019,2]
[312855708,1706367038961,-163.32257242,0.00019339,2]
[312855710,1706367038970,-13842.57,0.00019609,3]
[312855712,1706367038980,-4105.13214194,0.00019619,2]
[312855714,1706367038989,-163.32257242,0.0001972,2]
[312855716,1706367038998,-1242.95347942,0.00019817,2]
[312855718,1706367039007,-310.00620012,0.00019817,2]
[312855721,1706367039017,-167.07507869,0.00019817,2]
[312855722,1706367039026,-18911.34410975,0.00019817,2]
[312855725,1706367039035,-310.00620012,0.00019817,2]
[312855726,1706367039045,-5772.2207688,0.0001982,2]
[312855729,1706367039054,-155.01860223,0.0002,2]
[312855730,1706367039063,-1199.09633829,0.0002,2]
[312855732,1706367039072,-679.3029243,0.0002,2]
[312855735,1706367039082,-155.18038222,0.00020122,2]
[312855736,1706367039091,-608.13565426,0.00020122,2]
[312855738,1706367039100,-300.0,0.00020122,2]
[312855740,1706367039109,-759.80109962,0.00020122,2]
[312855742,1706367039118,-539.43686012,0.00020122,2]
[312855745,1706367039128,-2084.071023,0.00020122,2]
[312855746,1706367039137,-938.44719213,0.00020129,2]
[312855748,1706367039145,-155.01860223,0.00020129,2]
[312855750,1706367039155,-535.60419036,0.00020129,2]
[312855752,1706367039164,-1470.54830513,0.00020622,2]
[312855754,1706367039173,-310.00620012,0.00020758,2]
[312855756,1706367039182,-200.0,0.00020758,2]
[312855758,1706367039191,-156.21203672,0.00020758,2]
[312855760,1706367039200,-387.16006083,0.00020758,2]
[312855762,1706367039210,-19708.51890523,0.00020759,2]
[312855764,1706367039219,-664.2704056,0.00020762,2]
[312855766,1706367039229,-1827.7377922,0.00021,2]
[312855768,1706367039238,-2004.1473138,0.00021089,2]
[312855770,1706367039247,-162.2896963,0.00021092,2]
[312855772,1706367039256,-166.666666,0.00021918,2]
[312855774,1706367039265,-3971.98419525,0.00022,2]
[312855776,1706367039274,-2033.37480073,0.00022,2]
[312855778,1706367039283,-426.38170713,0.00022,2]
[312855780,1706367039293,-327.61566675,0.00022,2]
[312855782,1706367039304,-164.09330822,0.00022363,2]
[312855784,1706367039313,-24900.0,0.00022368,2]
[312855786,1706367039323,-166.666666,0.00022431,2]
[312855788,1706367039332,-166.666666,0.00022944,2]
[312855790,1706367039343,-9947.92180076,0.00023,2]
[312855792,1706367039356,-180.419329,0.00023045,2]
[312855794,1706367039366,-166.666666,0.00023456,2]
[312855795,1706367039375,-2411.18267574,0.00023948,2]
[312855796,1706367039385,-166.666666,0.00023969,2]
[312855797,1706367039401,-4017.99473219,0.00024,2]
[312855798,1706367039417,-166.666666,0.00024482,2]
[312855799,1706367039433,-1828.18039739,0.00025,2]
[312855800,1706367039447,-7389.4786433,0.00025,2]
[312855801,1706367039462,-851.06760342,0.00025,2]
[312855802,1706367039477,-290.6944281,0.00027,2]
[312855803,1706367039492,-620.00754458,0.0002728,2]
[312855804,1706367039507,-11535.47,0.00027397,3]
[312855805,1706367039520,-9612.89,0.00027397,3]
[312855806,1706367039534,-6044.69905188,0.00027489,2]
[312855807,1706367039550,-200.93387921,0.000279,2]
[312855808,1706367039564,-200.93387921,0.000279,2]
[312855809,1706367039579,-978.2579722,0.00027978,2]
[312855810,1706367039589,-556.2457431,0.00028,2]
[312855811,1706367039606,-620.00037723,0.00028644,2]
[312855812,1706367039620,-201.12414354,0.000289,2]
[312855813,1706367039632,-7196.06854955,0.00029,4]
[312855814,1706367039645,-1000.0,0.00029,2]
[312855815,1706367039658,-997.9653611,0.00029,2]
[312855816,1706367039671,-1933.42796518,0.00029,2]
[312855817,1706367039687,-13488.70138052,0.00029724,3]
[312855818,1706367039701,-5000.0,0.00029724,5]
[312855819,1706367039715,-63594.24257388,0.00029724,4]
[312855820,1706367039725,-5000.0,0.00029724,5]
[312855821,1706367039736,-17355.4707725,0.00029724,3]
[312855822,1706367039750,-5000.0,0.00029724,5]
[312855823,1706367039762,-2512.042803,0.00029998,2]
[312855824,1706367039776,-689.09430435,0.0003,4]
[312855825,1706367039787,-1027.50463707,0.0003,2]
[312855826,1706367039799,-195.57103754,0.0003,2]
[312855827,1706367039811,-8589.76287383,0.0003,2]
[312855828,1706367039823,-254.87264804,0.0003,2]
[312855829,1706367039835,-157.99274934,0.0003,4]
[312855830,1706367039847,-244.44828906,0.0003,4]
[312855831,1706367039858,-4292.55674097,0.0003,4]
[312855832,1706367039870,-346.0,0.0003,2]
[312855833,1706367039881,-155.2769821,0.0003,4]
[312855834,1706367039893,-620.00001886,0.00030076,2]
[312855835,1706367039904,-153.0,0.00030137,2]
[312855836,1706367039916,-153.0,0.00030137,2]
[312855837,1706367039928,-411.5229844,0.00030137,2]
[312855838,1706367039939,-153.0,0.00030137,2]
[312855839,1706367039950,-154.5089909,0.00030137,2]
[312855840,1706367039962,-159.5134984,0.00030137,2]
[312855841,1706367039973,-153.0,0.00030137,2]
[312855842,1706367039985,-153.0,0.00030137,2]
[312855843,1706367039996,-153.0,0.00030137,2]
[312855844,1706367040008,-153.0,0.00030137,2]
[312855845,1706367040019,-153.0,0.00030137,2]
[312855846,1706367040031,-398.8831538,0.00030137,2]
[312855847,1706367040042,-153.0,0.00030137,2]
[312855848,1706367040054,-153.0,0.00030137,2]
[312855849,1706367040065,-153.0,0.00030137,2]
[312855850,1706367040077,-153.0,0.00030137,2]
[312855851,1706367040089,-153.0,0.00030137,2]
[312855852,1706367040100,-153.0,0.00030137,2]
[312855853,1706367040112,-153.0,0.00030137,2]
[312855854,1706367040124,-317.486678,0.00030137,2]
[312855855,1706367040135,-158.81503,0.00030137,2]
[312855856,1706367040147,-254.41303,0.00030137,2]
[312855858,1706367040159,-201.1241435,0.00030292,2]
[312855860,1706367040171,-623.01028674,0.00030335,2]
[312855862,1706367040182,-649.86107879,0.00031,4]
[312855865,1706367040194,-254.41303,0.00031115,2]
[312855867,1706367040205,-620.00000094,0.0003158,2]
[312855869,1706367040214,-201.1241435,0.00031684,2]
[312855871,1706367040224,-158.81503,0.00031703,2]
[312855882,1706367040343,-620.15051434,0.00031852,2]
[312855885,1706367040361,-897.97777174,0.00032,7]
[312855887,1706367040371,-254.41303,0.00032094,2]
[312855889,1706367040380,-200.82122795,0.0003259,4]
[312855891,1706367040389,-619.87708183,0.00032592,4]
[312855893,1706367040399,-294.35075022,0.00032592,4]
[312855895,1706367040407,-82714.7913079,0.00032592,2]
[312855896,1706367040416,-150.321,0.00032677,2]
[312855897,1706367040425,-500.0,0.00032999,7]
[312855898,1706367040435,-500.0,0.00032999,7]
[312855899,1706367040445,-500.0,0.00032999,7]
[312855900,1706367040454,-500.0,0.00032999,7]
[312855901,1706367040464,-577.97246029,0.00032999,7]
[312855902,1706367040473,-500.0,0.00032999,7]
[312855903,1706367040482,-500.0,0.00032999,7]
[312855904,1706367040491,-500.0,0.00032999,7]
[312855905,1706367040500,-500.0,0.00032999,7]
[312855906,1706367040509,-500.0,0.00032999,7]
[312855907,1706367040518,-190.40084948,0.00032999,7]
[312855908,1706367040528,-500.0,0.00032999,7]
[312855909,1706367040537,-500.0,0.00032999,7]
[312855910,1706367040547,-500.0,0.00032999,7]
[312855911,1706367040556,-500.0,0.00032999,7]
[312855912,1706367040566,-211.38916615,0.00032999,7]
[312855913,1706367040575,-500.0,0.00032999,7]
[312855914,1706367040584,-500.0,0.00032999,7]
[312855915,1706367040594,-500.0,0.00032999,7]
[312855916,1706367040603,-500.0,0.00032999,7]
[312855917,1706367040612,-500.0,0.00032999,7]
[312855918,1706367040621,-485.83716126,0.00032999,7]
[312855919,1706367040630,-170.56154962,0.00032999,7]
[312855920,1706367040639,-500.0,0.00032999,7]
[312855921,1706367040648,-500.0,0.00032999,7]
[312855922,1706367040657,-500.0,0.00032999,7]
[312855923,1706367040666,-500.0,0.00032999,7]
[312855924,1706367040675,-500.0,0.00032999,7]
[312855925,1706367040684,-500.0,0.00032999,7]
[312855926,1706367040693,-500.0,0.00032999,7]
[312855927,1706367040702,-500.0,0.00032999,7]
[312855928,1706367040710,-500.0,0.00032999,7]
[312855929,1706367040719,-500.0,0.00032999,7]
[312855930,1706367040728,-350.0,0.00032999,7]
[312855931,1706367040737,-500.0,0.00032999,7]
[312855933,1706367040746,-500.0,0.00032999,7]
[312855934,1706367040755,-500.0,0.00032999,7]
[312855936,1706367040764,-500.0,0.00032999,7]
[312855938,1706367040773,-500.0,0.00032999,7]
[312855939,1706367040783,-500.0,0.00032999,7]
[312855940,1706367040792,-500.0,0.00032999,7]
[312855941,1706367040801,-500.0,0.00032999,7]
[312855943,1706367040810,-500.0,0.00032999,7]
[312855945,1706367040819,-500.0,0.00032999,7]
[312855947,1706367040828,-500.0,0.00032999,7]
[312855949,1706367040837,-500.0,0.00032999,7]
[312855951,1706367040847,-500.0,0.00032999,7]
[312855953,1706367040856,-500.0,0.00032999,7]
[312855957,1706367040866,-500.0,0.00032999,7]
[312855960,1706367040875,-500.0,0.00032999,7]
[312855961,1706367040884,-498.2,0.00032999,7]
[312855962,1706367040893,-500.0,0.00032999,7]
[312855963,1706367040902,-500.0,0.00032999,7]
[312855964,1706367040911,-181.25180907,0.00032999,7]
[312855966,1706367040921,-500.0,0.00032999,7]
[312855968,1706367040930,-500.0,0.00032999,7]
[312855969,1706367040939,-500.0,0.00032999,7]
[312855970,1706367040948,-500.0,0.00032999,7]
[312855971,1706367040957,-500.0,0.00032999,7]
[312855972,1706367040966,-500.0,0.00032999,7]
[312855973,1706367040975,-500.0,0.00032999,7]
[312855974,1706367040984,-386.44190888,0.00032999,7]
[312855975,1706367040994,-500.0,0.00032999,7]
[312855976,1706367041003,-500.0,0.00032999,7]
[312855977,1706367041013,-500.0,0.00032999,7]
[312855978,1706367041022,-500.0,0.00032999,7]
[312855979,1706367041031,-500.0,0.00032999,7]
[312855980,1706367041041,-500.0,0.00032999,7]
[312855981,1706367041050,-500.0,0.00032999,7]
[312855982,1706367041060,-500.0,0.00032999,7]
[312855983,1706367041069,-500.0,0.00032999,7]
[312855984,1706367041078,-500.0,0.00032999,7]
[312855985,1706367041087,-500.0,0.00032999,7]
[312855986,1706367041096,-500.0,0.00032999,7]
[312855987,1706367041105,-500.0,0.00032999,7]
[312855988,1706367041114,-500.0,0.00032999,7]
[312855989,1706367041124,-500.0,0.00032999,7]
[312855990,1706367041133,-500.0,0.00032999,7]
[312855991,1706367041142,-500.0,0.00032999,7]
[312855992,1706367041152,-500.0,0.00032999,7]
[312855993,1706367041161,-500.0,0.00032999,7]
[312855994,1706367041170,-500.0,0.00032999,7]
[312855995,1706367041179,-500.0,0.00032999,7]
[312855996,1706367041188,-228.50754628,0.00033,2]
[312855997,1706367041198,-22355.32655684,0.00033,5]
[312855998,1706367041207,-254.41303,0.00033072,2]
[312855999,1706367041216,-201.1241435,0.00033076,2]
[312856000,1706367041225,-158.81503,0.00033268,2]
[312856001,1706367041234,-300.0,0.000334,17]
[312856002,1706367041244,-254.41303,0.00034051,2]
[312856003,1706367041254,-642.42435849,0.00034306,4]
[312856004,1706367041263,-201.1241435,0.00034468,2]
[312856005,1706367041273,-347.61,0.00034557,2]
[312856006,1706367041282,-347.61,0.00034557,2]
[312856007,1706367041292,-347.61,0.00034557,2]
[312856008,1706367041303,-347.61,0.00034557,2]
[312856009,1706367041312,-347.61,0.00034557,2]
[312856010,1706367041321,-347.61,0.00034557,2]
[312856011,1706367041332,-347.61,0.00034557,2]
[312856012,1706367041341,-347.61,0.00034557,2]
[312856013,1706367041351,-347.61,0.00034557,2]
[312856014,1706367041365,-347.68,0.00034557,2]
[312856015,1706367041373,-276000.0,0.00034558,2]
[312856016,1706367041382,-180.419329,0.00034568,2]
[312856017,1706367041391,-155.39689752,0.00034653,4]
[312856018,1706367041401,-2080.40059102,0.00034654,4]
[312856019,1706367041410,-309.80274109,0.00034654,4]
[312856020,1706367041419,-6063.0591503,0.00034655,2]
[312856021,1706367041428,-156.37412083,0.00034656,4]
[312856022,1706367041438,-156.63500175,0.00034656,4]
[312856023,1706367041449,-5175.97265662,0.00034656,4]
[312856024,1706367041458,-76476.46380949,0.00034658,4]
[312856025,1706367041467,-2811.05101879,0.0003466,2]
[312856026,1706367041477,-158.81503,0.00034834,2]
[312856027,1706367041486,-300.0,0.000349,17]
[312856028,1706367041495,-200.0,0.000349,4]
[312856029,1706367041504,-151.0,0.0003495,2]
[312856030,1706367041513,-592.61828384,0.00035,2]
[312856031,1706367041522,-25445.23989646,0.00035,15]
[312856032,1706367041535,-10202.84952288,0.00035,15]
[312856033,1706367041548,-319.98000062,0.00035,15]
[312856043,1706367041801,-471.05101678,0.00018572,2]
[312856044,1706367041810,-1742.30413686,0.00018675,2]
[312856045,1706367041820,-904.37484693,0.00018675,2]
[312856046,1706367041829,-940.08721663,0.00027397,3]
[312856047,1706367041841,-548.69079618,0.00027397,3]
[312856048,1706367042023,-685.25000075,0.00027397,3]
[312856070,1706367043837,-155.35572105,0.00018675,2]
[312856071,1706367043846,-310.00620012,0.00027396,2]
[312856072,1706367043855,-1865.26130253,0.00035,15]
[312856073,1706367043866,-980.91267131,0.00035,15]
[312856074,1706367043877,-2435.13655299,0.00035,15]
[312856075,1706367043889,-3661.15588281,0.00035,15]
[312856076,1706367043900,-351.93786125,0.00035,15]
[312856100,1706367046811,-522.50744065,0.00027396,2]
[312856101,1706367046821,-166.80502533,0.00027396,2]
[312856102,1706367046830,-265.48369571,0.00027396,2]
[312856103,1706367046839,-201.06326336,0.00027396,2]
[312856104,1706367046850,-555.82631352,0.00027396,2]
[312856105,1706367046859,-1386.49281456,0.00027396,2]
[312856107,1706367089733,5000.0,0.00020128,5]
[312856108,1706367125102,1034.73605668,0.0003,14]
[312856126,1706367145447,97485.36844516,0.0003,14]
[312856127,1706367145471,68367.65230841,0.0003,14]
[312856129,1706367186795,155.01860223,0.00021999,4]
[312856161,1706367268664,10492.06157663,0.0003,30]
[312856162,1706367269305,155.01860223,0.00020127,4]
[312856173,1706367413758,997.9653611,0.00031,15]
[312856174,1706367474497,833.89119796,0.00013502,2]